Cogmind - Beta 14 @@@ ROGUE MODE // 2024.09.15 @ 16:30:43 Player: Alexlascribe Result: Destroyed by VQ-0JI(R) with Subdweller Machine Gun Performance ------------- Evolutions (0) 0 Regions Visited (3) 600 Robots Destroyed (4) 20 Value Destroyed (168) 168 Prototype IDs (0) 0 Alien Tech Used (0) 0 Bonus (27) 27 TOTAL SCORE: 815 Bonus ------- Follower Combat Kills 46 Friendly Fire -19 Cogmind --------- Core Integrity 0/250 Matter 295/300 Energy 95/100 System Corruption 0% Temperature Cool (0) Movement Core (350) Ox6 Location -10/Subcaves Parts ------- > --- POWER (1) -------- (None) > --- PROPULSION (2) --- (None) > --- UTILITY (2) ------ Improved Heat Sink Large Storage Unit > --- WEAPON (2) ------- (None) > --- INVENTORY (15) --- Light Ion Engine Light Ion Engine Signal Interpreter Scrap Shield Medium Laser Light Assault Rifle Mining Laser Peak State ------------ > --- POWER ------------ Light Ion Engine > --- PROPULSION ------- Light Treads Light Treads > --- UTILITY ---------- Improved Heat Sink Large Storage Unit > --- WEAPON ----------- Assault Rifle Assault Rifle > --- INVENTORY -------- Light Ion Engine Light Ion Engine Signal Interpreter Scrap Shield Medium Laser Light Assault Rifle Mining Laser [Rating: 10] Favorites ----------- Power Light Ion Engine Engine Light Ion Engine Propulsion Light Treads Treads Light Treads Utility Large Storage Unit Device Improved Heat Sink Storage Large Storage Unit Weapon Assault Rifle Energy Gun Medium Laser Ballistic Gun Assault Rifle Special Weapon Mining Laser Build | -11 -10 -10 -10 ------- Run | Yrd Mat Min Sub Slots Evolved . | . . . . Power . | . . . . Propulsion . | . . . . Utility . | . . . . Weapon . | . . . . Parts Attached 14 | 7 1 4 2 Power 2 | 1 . . 1 Engine 1 | 1 . . . Core 1 | . . . 1 Reactor . | . . . . Propulsion 2 | 2 . . . Treads 2 | 2 . . . Leg . | . . . . Wheel . | . . . . Hover . | . . . . Flight . | . . . . Utility 5 | 1 1 3 . Device 2 | . . 2 . Storage 3 | 1 1 1 . Processor . | . . . . Hackware . | . . . . Protection . | . . . . Artifact . | . . . . Weapon 5 | 3 . 1 1 Energy Gun 1 | 1 . . . Energy Cannon . | . . . . Ballistic Gun 3 | 2 . . 1 Ballistic Cannon . | . . . . Launcher . | . . . . Special Weapon 1 | . . 1 . Impact Weapon . | . . . . Slashing Weapon . | . . . . Piercing Weapon . | . . . . Special Melee Weapon . | . . . . Unidentified Prototypes . | . . . . Parts Lost 6 | . . . 6 Power 2 | . . . 2 Propulsion 2 | . . . 2 Utility . | . . . . Weapon 2 | . . . 2 Highest Loss Streak 6 | . . . 6 To Critical Strikes 1 | . . . 1 Average Slot Usage (%) 96 | . 96 97 94 Engine 13 | . 14 14 12 Treads 27 | . 28 28 26 Device 9 | . . 10 14 Storage 16 | . 24 14 14 Ballistic Gun 27 | . 28 27 25 Peak Build Rating 10 | 6 7 9 10 Average Rating 7 | 4 6 7 9 On Entrance 5 | . 6 7 9 Naked Turns . | . . . . Heaviest Build 28 | 12 17 28 28 Greatest Support 40 | 40 40 40 40 Greatest Overweight (x) 6 | . . . 6 Average Overweight (x) . | . . . . Largest Inventory Capacity 15 | 8 8 15 15 Average Capacity 13 | 7 8 14 15 Most Carried 8 | 2 5 7 8 Average Carried 5 | . 2 5 7 Final Capacity 15 | 8 8 15 15 Final Carried 8 | 1 5 6 8 Class Distribution -------------------- 100% | Mutant Dominant Class ---------------- Mutant | -10/Materials Mutant | -10/Mines Mutant | -10/Subcaves Resources | -11 -10 -10 -10 ----------- Run | Yrd Mat Min Sub Matter Collected 450 | 235 . 165 50 Remotely . | . . . . Salvage Created 175 | . . 151 24 Parts 7 | . . 5 2 Haulers Intercepted . | . . . . Recyclers Shooed . | . . . . Parts Field Recycled . | . . . . Retrieved Matter . | . . . . Parts Self-Destructed . | . . . . Prevented . | . . . . Kills | -11 -10 -10 -10 ------- Run | Yrd Mat Min Sub Combat Hostiles Destroyed 4 | . . 3 1 Guns 4 | . . 3 1 Classes Destroyed 2 | . . 1 1 Grunt 3 | . . 3 . Subdweller 1 | . . . 1 Best Kill Streak 2 | . . 2 1 Combat Bots Only 2 | . . 2 1 Max Kills in Single Turn 1 | . . 1 1 Gunslinging . | . . . . Exploded . | . . . . Melee . | . . . . Uniques/NPCs Destroyed . | . . . . Combat | -11 -10 -10 -10 -------- Run | Yrd Mat Min Sub Hostile Shots Fired 60 | . . 20 40 Missed 18 | . . 3 15 Damage Taken 949 | . . 245 704 Core 256 | . . 30 226 Absorbed by Shields . | . . . . Core Remaining (%) 100 | 100 . . . Volleys Fired 24 | . 4 14 6 Largest 2 | . 2 2 2 Hottest 100 | . 40 100 40 Shots Fired 44 | . 8 25 11 Gun 41 | . 8 22 11 Cannon . | . . . . Launcher . | . . . . Special 3 | . . 3 . Kinetic 41 | . 8 22 11 Thermal 3 | . . 3 . Explosive . | . . . . Electromagnetic . | . . . . Robot Hit Streak 11 | . 2 10 11 Robot Miss Streak 4 | . 3 4 4 Penetration Max . | . . . . Secondary Targets 2 | . . 1 1 Max Gunslinging Chain 1 | . . 1 1 Shots Hit Robots 25 | . 3 17 5 Core Hits 13 | . 1 8 4 Critical Kills . | . . . . Critical Parts Destroyed . | . . . . Critical Strikes . | . . . . Melee Attacks . | . . . . Impact . | . . . . Slashing . | . . . . Piercing . | . . . . Sneak Attacks . | . . . . Combat Hostiles . | . . . . Follow-up Attacks . | . . . . Damage Inflicted 347 | . 33 217 97 Guns 347 | . 33 217 97 Cannons . | . . . . Explosions . | . . . . Melee . | . . . . Ramming . | . . . . Kinetic 347 | . 33 217 97 Thermal . | . . . . Explosive . | . . . . Electromagnetic . | . . . . Impact . | . . . . Slashing . | . . . . Piercing . | . . . . Highest Corruption . | . . . . Average Corruption . | . . . . Corruption Purged . | . . . . Corruption Blocked . | . . . . Overload Shots . | . . . . Overflow Damage . | . . . . Projectiles . | . . . . Explosions . | . . . . Melee . | . . . . Knockbacks . | . . . . Impact . | . . . . Kinetic . | . . . . Secondary . | . . . . Self-Inflicted Damage . | . . . . Shots . | . . . . Rammed . | . . . . Targets Rammed . | . . . . Kicked . | . . . . Crushed . | . . . . Highest Temperature 2 | . . 2 . Average Temperature 2 | . . 2 . Received Heat Transfer 204 | . . 138 66 Siege Activations . | . . . . Robots Corrupted . | . . . . Combat Hostiles . | . . . . Parts Fried . | . . . . Impact Corruptions . | . . . . Robots Melted . | . . . . Combat Hostiles . | . . . . Parts Melted . | . . . . Heat Transferred . | . . . . Parts Sabotaged . | . . . . Parts Stolen . | . . . . Parts Stripped . | . . . . Power Chain Reactions . | . . . . Alert | -11 -10 -10 -10 ------- Run | Yrd Mat Min Sub Peak Influence 154 | . . 154 . Initial . | . . . . Average 23 | . . 30 . Maximum Alert Level . | . . . . Low Security (%) 100 | 100 100 100 . Level 1 . | . . . . Level 2 . | . . . . Level 3 . | . . . . Level 4 . | . . . . Level 5 . | . . . . High Security . | . . . . Max Security . | . . . . Squads Dispatched . | . . . . Investigation . | . . . . Extermination . | . . . . Reinforcement . | . . . . Assault . | . . . . Garrison . | . . . . Intercept . | . . . . Searches Triggered . | . . . . Construction Impeded . | . . . . Haulers Reinforced . | . . . . Active Scanning Responses . | . . . . Cargo Convoy Interrupts . | . . . . Stealth | -11 -10 -10 -10 --------- Run | Yrd Mat Min Sub Distress Signals . | . . . . Communications Jammed . | . . . . Distress Signals . | . . . . Times Spotted 24 | . 2 8 14 Peak Tracking Total 11 | . 3 3 11 Tactical Retreats 2 | . . 2 . Traps | -11 -10 -10 -10 ------- Run | Yrd Mat Min Sub Traps Triggered . | . . . . Indirectly . | . . . . Trap Hack Attempts . | . . . . Triggered . | . . . . Disarmed . | . . . . Reprogrammed . | . . . . Reused . | . . . . Traps Extracted . | . . . . Installed . | . . . . Triggered . | . . . . Machines | -11 -10 -10 -10 ---------- Run | Yrd Mat Min Sub Machines Disabled . | . . . . Max in Single Turn . | . . . . Machines Repaired . | . . . . Machines Dismantled . | . . . . Machines Sabotaged . | . . . . Overloaded Fab Kills . | . . . . Hacking | -11 -10 -10 -10 --------- Run | Yrd Mat Min Sub Machines Accessed 1 | . 1 . . Terminals 1 | . 1 . . Fabricators . | . . . . Repair Stations . | . . . . Recycling Units . | . . . . Scanalyzers . | . . . . Garrison Access . | . . . . Total Hacks 1 | . 1 . . Successful . | . . . . Failed 1 | . 1 . . Catastrophic 1 | . 1 . . Database Lockouts . | . . . . Manual 1 | . 1 . . Terminals 1 | . 1 . . Fabricators . | . . . . Repair Stations . | . . . . Recycling Units . | . . . . Scanalyzers . | . . . . Garrison Access . | . . . . Terminal Hacks . | . . . . Fabricator Hacks . | . . . . Repair Station Hacks . | . . . . Recycling Unit Hacks . | . . . . Scanalyzer . | . . . . Garrison Access Hacks . | . . . . Unauthorized Hacks . | . . . . Terminals . | . . . . Fabricators . | . . . . Repair Stations . | . . . . Recycling Units . | . . . . Scanalyzers . | . . . . Garrison Access . | . . . . Data Cores Recovered . | . . . . Used . | . . . . Hacking Detections 1 | . 1 . . Full Trace Events . | . . . . Feedback Events . | . . . . Feedback Blocked . | . . . . Robot Schematics Acquired . | . . . . Robots Built . | . . . . Authchips . | . . . . Time . | . . . . Total Robot Build Rating . | . . . . Part Schematics Acquired . | . . . . Parts Built . | . . . . Authchips . | . . . . Time . | . . . . Total Part Build Rating . | . . . . Parts Repaired . | . . . . Time . | . . . . Parts Recycled . | . . . . Recycled Matter . | . . . . Retrieved Matter . | . . . . Retrieved Components . | . . . . Parts Scanalyzed . | . . . . Part Schematics Acquired . | . . . . Parts Damaged . | . . . . Bothacking | -11 -10 -10 -10 ------------ Run | Yrd Mat Min Sub Used RIF Installer . | . . . . Robots Hacked . | . . . . Non-combat . | . . . . Combat . | . . . . Robot Hacks Applied . | . . . . Relay Couplers Released . | . . . . Fabnet Peak Effective % . | . . . . Robots Rewired . | . . . . Allies Hacked . | . . . . Hacks Repelled . | . . . . Allies | -11 -10 -10 -10 -------- Run | Yrd Mat Min Sub Total Allies 3 | . . 3 . Largest Group 3 | . . 3 . Highest-Rated Group 40 | . . 40 . Highest-Rated Ally 16 | . . 16 . Total Orders . | . . . . Ally Attacks 28 | . . 28 . Total Damage 269 | . . 269 . Kills 4 | . . 4 . Allies Corrupted . | . . . . Allies Melted . | . . . . Intel | -11 -10 -10 -10 ------- Run | Yrd Mat Min Sub Robot Analysis Total . | . . . . Derelict Logs Recovered 1 | . . 1 . Drone Launches . | . . . . Drone Recoveries . | . . . . Exploration | -11 -10 -10 -10 ------------- Run | Yrd Mat Min Sub Turns Passed 1367 | 83 212 965 107 Spaces Moved 695 | 47 113 489 46 Core 5 | 4 . . 1 Treads 690 | 43 113 489 45 Legs . | . . . . Wheels . | . . . . Hover . | . . . . Flight . | . . . . Fastest Speed 50 | 50 160 160 160 Average Speed 159 | 150 160 160 167 Slowest Speed 350 | 160 160 160 350 Overloaded Moves . | . . . . Propulsion Burnouts . | . . . . Robots Hopped . | . . . . Cave-ins Triggered . | . . . . Exploration Rate (%) 31 | 3 31 86 7 Regions Visited 3 Branch Regions 2 Pre-discovered Areas . | . . . . Known Exits Taken 1 | . . 1 . Unknown Exits Taken 2 | 1 1 . . Scrap Searched 1 | . . 1 . Spaces Dug 2 | . . 2 . Terrain Destroyed 2 | . . 2 . Melee . | . . . . Projectile 2 | . . 2 . AOE . | . . . . Terrain Rammed . | . . . . Walls Destroyed . | . . . . Machines Disabled . | . . . . Actions | -11 -10 -10 -10 --------- Run | Yrd Mat Min Sub Total 896 | 56 136 640 64 Wait 152 | . 13 130 9 Move 692 | 46 112 488 46 Hop . | . . . . Pick Up 9 | 2 5 1 1 Fast Attach 9 | 6 1 1 1 Attach . | . . . . Detach . | . . . . Swap 5 | 1 . 3 1 Drop 5 | 1 1 3 . Fire 24 | . 4 14 6 Melee . | . . . . Ram . | . . . . Kick . | . . . . Crush . | . . . . Escape Stasis . | . . . . Rewire . | . . . . Trap . | . . . . Miscellaneous . | . . . . Route ------- -11/Scrapyard -10/Materials -10/Mines -10/Subcaves History --------- Turn | Location | Event 39 | -11/Scrapyard | Discovered new exit (range 15) 84 | -11/Scrapyard | Entered Materials 251 | -10/Materials | Discovered new exit (range 15) 296 | -10/Materials | Entered Mines 300 | -10/Mines | Assisted by bots powering up and referring to "LRC-V3" 310 | -10/Mines | Build established: Mutant 314 | -10/Mines | Identified exit to Subcaves 827 | -10/Mines | Lost 3 allies 1261 | -10/Mines | Entered Subcaves 1265 | -10/Subcaves | Ambushed by Subdwellers from Twisted Machinery 1351 | -10/Subcaves | Ambushed by swarm of Subdwellers 1352 | -10/Subcaves | Ambushed by Subdwellers from Twisted Machinery 1352 | -10/Subcaves | Ambushed by Subdwellers from Twisted Machinery 1352 | -10/Subcaves | Ambushed by Subdwellers from Twisted Machinery 1356 | -10/Subcaves | Ambushed by Subdwellers from Twisted Machinery 1361 | -10/Subcaves | Ambushed by Subdweller buried in earth 1363 | -10/Subcaves | Core integrity fell below 50% 1366 | -10/Subcaves | Core integrity fell below 20% 1368 | -10/Subcaves | Destroyed by VQ-0JI(R) with Subdweller Machine Gun Last Messages --------------- 01354_ RG-VPV(R) emerges from the Twisted Machinery. 01355_ Acquired 6 matter. 01355_ HV Slug penetrates MP-6QA(R). 01355_ MP-6QA(R) destroyed. 01355_ 4O-I93(g) suffers critical hit (Destroy). 01355_ 4O-I93(g) destroyed. 01356_ NX-KA6(R) emerges from the Twisted Machinery. 01356_ Assault Rifle destroyed. 01356_ ZL-2VO(R) angrily emerges from the Twisted Machinery. 01357_ Lgt. Treads destroyed. 01357_ X9-08P(h) destroyed. 01358_ Assault Rifle destroyed. 01359_ 2V-0RX(g) destroyed. 01359_ ZE-VKN(g) destroyed. 01359_ Lgt. Ion Engine destroyed. 01361_ Lgt. Treads destroyed. 01362_ 1Y-RLB(R): "FREEEEDUMB!" 01364_ Acquired Neutrino Core. 01364_ Critical hit (Destroy). 01364_ Neutrino Core destroyed. Map ----- +----------------------------------------------------+ | ?????????????????????????????????????????????????? | | ?????????????????????????????????????????????????? | | ?????????????????????????????????????????????????? | | ?????????????????????????????????????????????????? | | ?????????????????????????????????????????????????? | | ?????????????????????????????????????????????????? | | ?????????????????????????????????????????????????? | | ?????????????????????????????????????????????????? | | ?????????????????????????????????????????????????? | | ?????????????????????????????????????????????????? | | ?????????????????????????????????????????????????? | | ?????????????????????????????????????????????????? | | ?????????????????????????????????????????????????? | | ?????????????????????????????????????????????????? | | ????????????????###??????????????????????????????? | | ????????????????# #?????????????????????????????? | | ????????????????? #????????????##??????????????? | | ?????????????????? #??######?? ##?? ??????????? | | ??????????????????# ### # ### ## ??????????? | | ??????????????????# ;# ;# ??????????? | | ??????????????????# ; ;; ??????????? | | ???????????????????# ;; ??#????????? | | ??????????????????## ; ??? ##???????? | | ?????????????????## ;#??? #???????? | | ?????????????????# ;# #???????? | | ??????????????????# @ ; % #???????? | | ??????????????????## % #???????? | | ?????????????????### = #???????? | | ?????????????????# R #???????? | | ????????????###### *] RR R ## % % #???????? | | ????????????# R%&R[ ;; #??## ??????? | | ???????? RR R "=% # ##??????? ??????? | | ???????? ##"# #####?????????????????? | | ????????? ??### ##?????????????????????? | | ????????? ???## ##??????????????????????? | | ??????????# #???## ##??????????????????????? | | ??????????????????# #??????????????????????? | | ??????????????????# ####??????????????????????? | | ??????????????????## ##?????????????????????????? | | ??????????????????# #??????????????????????????? | | ??????????????????## ##?????????????????????????? | | ???????????????##?## ##????????????????????????? | | ????????????# # # #????????????????????????? | | ?????????# #????????????????????????? | | ?????????# # # # ##???????????????????????? | | ?????????????###?#### ##??????????????????????? | | ????????????####????# #??????????????????????? | | ???#??####### ###### """##??????????????????????? | | ???# ## ## # " ##???????????????????????? | | ???## ##[& "##????????????????????????? | +----------------------------------------------------+ Best States ------------- Heat Dissipation 39 Energy Generation 10 Energy Capacity 125 Matter Stores 300 Matter Capacity 300 Sight Range 16 Terrain Scan Density 10 Evasion (%) 40 Recoil Reduction 2 Item Schematics ----------------- None Robot Schematics ------------------ None Fabricated ------------ Nothing Alien Tech Used ----------------- None Achievements -------------- None Challenges ------------ None Game ------ Seed LegIntegrityMaul Manual? 0 Play Time 00:10:50 Cumulative 40.1 hours Start 2024.09.15 @ 16:08:53 End 2024.09.15 @ 16:30:43 Sessions 1 Manual Loads 0 Difficulty Rogue Special Mode None Game No. 71 Rogue 51 Adventurer 20 Explorer 0 Win Type - Total 0 Types 0/0/0/0/0/0/0/0/0 Lore% 9 Gallery% 29 Achievement% 26 Wizard Run 0 Options --------- Layout 0 ASCII 0 Keyboard 0 Movement Mouse Keybinds 0 Fullscreen 1 Font 36/Smallcaps Map View 76x50 Zoom Use 0% Tactical HUD 1 Map Filters NONE Filters NONE Steam 1 RUN: 9fc470aa-46e8-4960-8022-100af8b43733